[Event "*** Titled Tuesday Blitz"]
[Site "Chess.com"]
[Date "2018.07.03"]
[Round "5"]
[White "BlackBoarder"]
[Black "colegiodemadrid"]
[Result "1/2-1/2"]
[WhiteElo "2246"]
[BlackElo "2221"]
[TimeControl "180+2"]
[EndTime "14:07:29 PDT"]
[Termination "Game drawn by agreement"]

1. e4 {[%clk 0:02:59.5]} 1... e5 {[%clk 0:03:00.2]} 2. Nf3 {[%clk 0:03:00.3]}
2... Nc6 {[%clk 0:02:58.5]} 3. Nc3 {[%clk 0:03:01.2]} 3... Nf6 {[%clk
0:02:57.2]} 4. Bb5 {[%clk 0:03:02.5]} 4... Nd4 {[%clk 0:02:58.3]} 5. Bc4 {[%clk
0:03:03.1]} 5... Nxf3+ {[%clk 0:02:56.2]} 6. Qxf3 {[%clk 0:03:03.9]} 6... c6
{[%clk 0:02:56.4]} 7. d3 {[%clk 0:03:03.2]} 7... d6 {[%clk 0:02:56]} 8. Bg5
{[%clk 0:03:03.9]} 8... Be7 {[%clk 0:02:56.8]} 9. h3 {[%clk 0:03:04.5]} 9... h6
{[%clk 0:02:58.1]} 10. Bxf6 {[%clk 0:02:59.7]} 10... Bxf6 {[%clk 0:02:58.8]} 11.
O-O {[%clk 0:03:00.9]} 11... O-O {[%clk 0:02:59.7]} 12. Qg3 {[%clk 0:02:57.2]}
12... Bh4 {[%clk 0:02:58.6]} 13. Qf3 {[%clk 0:02:57]} 13... Bg5 {[%clk
0:02:55.3]} 14. g3 {[%clk 0:02:55.8]} 14... Bxh3 {[%clk 0:02:54.8]} 15. Rfb1
{[%clk 0:02:54.6]} 15... Qd7 {[%clk 0:02:55.1]} 16. a4 {[%clk 0:02:53.7]} 16...
Kh8 {[%clk 0:02:49.1]} 17. b4 {[%clk 0:02:53.4]} 17... f5 {[%clk 0:02:49.8]} 18.
Qh1 {[%clk 0:02:46.7]} 18... f4 {[%clk 0:02:47.7]} 19. Ne2 {[%clk 0:02:42.4]}
19... fxg3 {[%clk 0:02:41.9]} 20. Nxg3 {[%clk 0:02:42]} 20... Rf3 {[%clk
0:02:38.7]} 21. Qxf3 {[%clk 0:02:39.9]} 21... Bg4 {[%clk 0:02:36.8]} 22. Qg2
{[%clk 0:02:38.9]} 22... Bh3 {[%clk 0:02:37.4]} 23. Qh2 {[%clk 0:02:39.5]} 23...
Rf8 {[%clk 0:02:38.1]} 24. Kh1 {[%clk 0:02:29.8]} 24... d5 {[%clk 0:02:33.9]}
25. exd5 {[%clk 0:02:28.3]} 25... cxd5 {[%clk 0:02:35]} 26. Bb3 {[%clk 0:02:22]}
26... Bg4 {[%clk 0:02:35.7]} 27. Kg1 {[%clk 0:02:14.4]} 27... Rf3 {[%clk
0:02:19.8]} 28. c4 {[%clk 0:01:57.4]} 28... Rxd3 {[%clk 0:02:15.9]} 29. Bd1
{[%clk 0:01:38.3]} 29... Be6 {[%clk 0:02:06.2]} 30. Be2 {[%clk 0:01:26.2]} 30...
Rd2 {[%clk 0:01:58.9]} 31. cxd5 {[%clk 0:01:23.2]} 31... Bxd5 {[%clk 0:02:00.1]}
32. Rd1 {[%clk 0:01:22]} 32... Qe6 {[%clk 0:01:37.1]} 33. Rxd2 {[%clk
0:01:19.2]} 33... Bxd2 {[%clk 0:01:38.4]} 34. b5 {[%clk 0:01:08.3]} 34... Bf4
{[%clk 0:01:35.2]} 35. Qh5 {[%clk 0:01:00.9]} 35... b6 {[%clk 0:01:33.6]} 36.
Bf3 {[%clk 0:01:00]} 36... Bc4 {[%clk 0:01:31.6]} 37. Kg2 {[%clk 0:00:57.9]}
37... Bd3 {[%clk 0:01:27]} 38. Rd1 {[%clk 0:00:45.6]} 38... e4 {[%clk
0:01:27.3]} 39. Bg4 {[%clk 0:00:27.5]} 39... Qg8 {[%clk 0:00:52]} 40. Qf5 {[%clk
0:00:24.8]} 40... Bxg3 {[%clk 0:00:47.5]} 41. fxg3 {[%clk 0:00:22.7]} 41... Qa2+
{[%clk 0:00:48.2]} 42. Qf2 {[%clk 0:00:21.3]} 42... Qa3 {[%clk 0:00:45.3]} 43.
Kh3 {[%clk 0:00:08.7]} 43... Qe7 {[%clk 0:00:40.9]} 44. Kg2 {[%clk 0:00:09.3]}
44... e3 {[%clk 0:00:42]} 45. Qe1 {[%clk 0:00:06.5]} 45... Bc4 {[%clk
0:00:34.3]} 46. Bf3 {[%clk 0:00:07.5]} 46... Qe5 {[%clk 0:00:32.8]} 47. Rd8+
{[%clk 0:00:07.5]} 47... Kh7 {[%clk 0:00:32.3]} 48. Qb1+ {[%clk 0:00:08.6]}
48... g6 {[%clk 0:00:33]} 49. Rd7+ {[%clk 0:00:09.6]} 49... Kh8 {[%clk 0:00:34]}
50. Qxg6 {[%clk 0:00:10.1]} 50... Qb2+ {[%clk 0:00:32.4]} 51. Kh3 {[%clk
0:00:11.2]} 51... Bf1+ {[%clk 0:00:32]} 52. Kg4 {[%clk 0:00:07.1]} 52... Qb4+
{[%clk 0:00:31.2]} 53. Kh5 {[%clk 0:00:06.2]} 53... Qc5+ {[%clk 0:00:28.4]} 54.
Bd5 {[%clk 0:00:07.1]} 54... Be2+ {[%clk 0:00:27.4]} 55. g4 {[%clk 0:00:08]}
55... Bxg4+ {[%clk 0:00:24.9]} 56. Kxg4 {[%clk 0:00:08.6]} 56... Qd4+ {[%clk
0:00:25.6]} 57. Be4 {[%clk 0:00:09.2]} 57... Qxd7+ {[%clk 0:00:26.7]} 58. Bf5
{[%clk 0:00:05.1]} 58... Qg7 {[%clk 0:00:26.2]} 59. Qxg7+ {[%clk 0:00:05]} 59...
Kxg7 {[%clk 0:00:27.5]} 60. Kf3 {[%clk 0:00:06.4]} 60... Kf6 {[%clk 0:00:29.1]}
61. Bc8 {[%clk 0:00:06.7]} 61... Ke5 {[%clk 0:00:30.4]} 62. Kxe3 {[%clk
0:00:07.9]} 62... Kd5 {[%clk 0:00:32]} 63. Kd3 {[%clk 0:00:08.5]} 63... Kc5
{[%clk 0:00:33]} 64. Kc3 {[%clk 0:00:06.9]} 64... h5 {[%clk 0:00:34.2]} 65. Bh3
{[%clk 0:00:07.4]} 65... h4 {[%clk 0:00:35.3]} 66. Bg4 {[%clk 0:00:08.9]} 66...
Kd5 {[%clk 0:00:36.5]} 67. Kb4 {[%clk 0:00:09.8]} 67... Kd4 {[%clk 0:00:37.6]}
68. a5 {[%clk 0:00:07.2]} 68... Kd5 {[%clk 0:00:38.6]} 69. axb6 {[%clk
0:00:06.8]} 69... axb6 {[%clk 0:00:40.1]} 70. Bh3 {[%clk 0:00:04.9]} 70... Kd4
{[%clk 0:00:41.1]} 71. Bg2 {[%clk 0:00:06.3]} 71... Kd3 {[%clk 0:00:41]} 72. Kb3
{[%clk 0:00:05]} 72... Kd4 {[%clk 0:00:42.2]} 73. Kb4 {[%clk 0:00:06.3]} 73...
Kd3 {[%clk 0:00:43.6]} 74. Bf1+ {[%clk 0:00:07.5]} 74... Kd4 {[%clk 0:00:44.7]}
75. Kb3 {[%clk 0:00:07.3]} 75... Kc5 {[%clk 0:00:46.2]} 76. Ka4 {[%clk
0:00:08.7]} 76... Kd5 {[%clk 0:00:46.4]} 77. Kb4 {[%clk 0:00:09]} 77... Kd4
{[%clk 0:00:47]} 78. Bh3 {[%clk 0:00:10.2]} 78... Kd3 {[%clk 0:00:48.1]} 79. Be6
{[%clk 0:00:09.1]} 79... Kd4 {[%clk 0:00:48.8]} 80. Kb3 {[%clk 0:00:10.3]} 80...
Ke5 {[%clk 0:00:48]} 81. Bc8 {[%clk 0:00:06.1]} 81... Kd4 {[%clk 0:00:46.2]} 82.
Kb4 {[%clk 0:00:03.8]} 82... Kd5 {[%clk 0:00:46.9]} 83. Bb7+ {[%clk 0:00:05]}
83... Kd4 {[%clk 0:00:48]} 84. Bg2 {[%clk 0:00:06.2]} 84... Kd3 {[%clk
0:00:48.6]} 85. Bf1+ {[%clk 0:00:07.6]} 85... Kd4 {[%clk 0:00:49.9]} 86. Bg2
{[%clk 0:00:09.1]} 86... Kd3 {[%clk 0:00:50.5]} 87. Kb3 {[%clk 0:00:10.2]} 87...
Kd4 {[%clk 0:00:51.5]} 88. Kc2 {[%clk 0:00:09.3]} 88... Kc5 {[%clk 0:00:50]} 89.
Bf1 {[%clk 0:00:10.5]} 89... Kb4 {[%clk 0:00:47.2]} 90. Kd2 {[%clk 0:00:10.2]}
90... h3 {[%clk 0:00:44.5]} 91. Bxh3 {[%clk 0:00:09.7]} 91... Kxb5 {[%clk
0:00:46]} 92. Kc3 {[%clk 0:00:06]} 1/2-1/2

[Event "*** Titled Tuesday Blitz"]
[Site "Chess.com"]
[Date "2018.07.03"]
[Round "6"]
[White "joppie2"]
[Black "plouarzel"]
[Result "1-0"]
[WhiteElo "2722"]
[BlackElo "2480"]
[TimeControl "180+2"]
[EndTime "14:11:43 PDT"]
[Termination "joppie2 won by resignation"]

1. d4 {[%clk 0:03:01.9]} 1... d6 {[%clk 0:02:59.9]} 2. e4 {[%clk 0:03:01.1]}
2... Nf6 {[%clk 0:03:00.1]} 3. Nc3 {[%clk 0:03:02]} 3... e5 {[%clk 0:03:00.9]}
4. Nf3 {[%clk 0:03:03.6]} 4... Nbd7 {[%clk 0:02:57.8]} 5. Bc4 {[%clk 0:03:05.1]}
5... Be7 {[%clk 0:02:58.7]} 6. a4 {[%clk 0:03:06.7]} 6... O-O {[%clk 0:02:57.5]}
7. O-O {[%clk 0:03:08.3]} 7... a5 {[%clk 0:02:57.8]} 8. h3 {[%clk 0:03:07.3]}
8... c6 {[%clk 0:02:58.9]} 9. Re1 {[%clk 0:03:08.3]} 9... Nb6 {[%clk 0:02:58.1]}
10. Ba2 {[%clk 0:03:09.3]} 10... Nfd7 {[%clk 0:02:59.4]} 11. Be3 {[%clk
0:03:10]} 11... exd4 {[%clk 0:02:57.8]} 12. Nxd4 {[%clk 0:03:11.9]} 12... Nc5
{[%clk 0:02:58.4]} 13. Qh5 {[%clk 0:03:13.5]} 13... Nbxa4 {[%clk 0:02:54.6]} 14.
Nxa4 {[%clk 0:03:15.3]} 14... Nxa4 {[%clk 0:02:56.5]} 15. Nf3 {[%clk 0:03:16.5]}
15... b5 {[%clk 0:02:56.2]} 16. Ng5 {[%clk 0:03:13]} 16... Bxg5 {[%clk
0:02:56.9]} 17. Bxg5 {[%clk 0:03:14.9]} 17... Qc7 {[%clk 0:02:58.5]} 18. Re3
{[%clk 0:03:09.3]} 18... Kh8 {[%clk 0:02:59.1]} 19. Bf4 {[%clk 0:02:55.5]} 19...
Be6 {[%clk 0:02:40.9]} 20. Rg3 {[%clk 0:02:43.6]} 20... Bxa2 {[%clk 0:02:23.3]}
21. Rxg7 {[%clk 0:02:41.4]} 21... Kxg7 {[%clk 0:02:04.7]} 22. Qg5+ {[%clk
0:02:40.5]} 22... Kh8 {[%clk 0:02:06.2]} 23. Qf6+ {[%clk 0:02:42.4]} 23... Kg8
{[%clk 0:02:07.5]} 24. Bh6 {[%clk 0:02:42]} 1-0

[Event "*** Titled Tuesday Blitz"]
[Site "Chess.com"]
[Date "2018.07.03"]
[Round "6"]
[White "Gvalch"]
[Black "GM_Huschenbeth"]
[Result "0-1"]
[WhiteElo "2611"]
[BlackElo "2498"]
[TimeControl "180+2"]
[EndTime "14:11:45 PDT"]
[Termination "GM_Huschenbeth won by resignation"]

1. d4 {[%clk 0:03:01.3]} 1... Nf6 {[%clk 0:03:00.3]} 2. c4 {[%clk 0:03:03.2]}
2... e6 {[%clk 0:03:01.6]} 3. g3 {[%clk 0:03:04]} 3... c5 {[%clk 0:03:01.2]} 4.
d5 {[%clk 0:03:04.9]} 4... exd5 {[%clk 0:03:03.1]} 5. cxd5 {[%clk 0:03:06.8]}
5... d6 {[%clk 0:03:03.7]} 6. Nc3 {[%clk 0:03:07.7]} 6... g6 {[%clk 0:03:05]} 7.
Bg2 {[%clk 0:03:09.2]} 7... Bg7 {[%clk 0:03:06.5]} 8. Nf3 {[%clk 0:03:11.1]}
8... O-O {[%clk 0:03:07.8]} 9. O-O {[%clk 0:03:13]} 9... Re8 {[%clk 0:03:08.3]}
10. Bf4 {[%clk 0:03:13.7]} 10... Ne4 {[%clk 0:03:09]} 11. Nxe4 {[%clk
0:03:14.9]} 11... Rxe4 {[%clk 0:03:10.9]} 12. Nd2 {[%clk 0:03:16.5]} 12... Rxf4
{[%clk 0:03:11.6]} 13. gxf4 {[%clk 0:03:18.4]} 13... Bxb2 {[%clk 0:03:13.1]} 14.
Rb1 {[%clk 0:03:20]} 14... Bg7 {[%clk 0:03:14.5]} 15. Qb3 {[%clk 0:03:21.6]}
15... b6 {[%clk 0:02:27.5]} 16. e4 {[%clk 0:03:18.2]} 16... Bh6 {[%clk
0:02:26.4]} 17. Qg3 {[%clk 0:03:17.7]} 17... Qf6 {[%clk 0:02:26]} 18. e5 {[%clk
0:03:11.7]} 18... Qxf4 {[%clk 0:02:26.5]} 19. Qxf4 {[%clk 0:03:12.3]} 19... Bxf4
{[%clk 0:02:27.1]} 20. Ne4 {[%clk 0:02:50.4]} 20... Bxe5 {[%clk 0:02:24.3]} 21.
f4 {[%clk 0:02:50.4]} 21... Bd4+ {[%clk 0:02:25.4]} 22. Kh1 {[%clk 0:02:51.4]}
22... Bf5 {[%clk 0:02:21.5]} 23. Rbe1 {[%clk 0:02:22.5]} 23... Bxe4 {[%clk
0:02:20.7]} 24. Re3 {[%clk 0:02:23.1]} 24... Bxg2+ {[%clk 0:02:18.9]} 25. Kxg2
{[%clk 0:02:22.8]} 25... Bxe3 {[%clk 0:02:20.8]} 0-1

[Event "*** Titled Tuesday Blitz"]
[Site "Chess.com"]
[Date "2018.07.03"]
[Round "6"]
[White "MatthewG-p4p"]
[Black "NguyenDucHoa"]
[Result "0-1"]
[WhiteElo "2663"]
[BlackElo "2518"]
[TimeControl "180+2"]
[EndTime "14:12:04 PDT"]
[Termination "NguyenDucHoa won by resignation"]

1. c4 {[%clk 0:03:01.9]} 1... Nf6 {[%clk 0:02:58.8]} 2. Nc3 {[%clk 0:03:02.4]}
2... g6 {[%clk 0:02:59]} 3. g3 {[%clk 0:03:00.5]} 3... Bg7 {[%clk 0:02:59.7]} 4.
Bg2 {[%clk 0:03:02]} 4... O-O {[%clk 0:03:00.9]} 5. e3 {[%clk 0:03:02.1]} 5...
c6 {[%clk 0:02:57.6]} 6. Nge2 {[%clk 0:03:03.4]} 6... d5 {[%clk 0:02:58.5]} 7.
b3 {[%clk 0:03:03]} 7... Bf5 {[%clk 0:02:50.6]} 8. cxd5 {[%clk 0:02:52.6]} 8...
cxd5 {[%clk 0:02:38.4]} 9. O-O {[%clk 0:02:54.3]} 9... Nc6 {[%clk 0:02:39]} 10.
Ba3 {[%clk 0:02:54.4]} 10... Re8 {[%clk 0:02:32.3]} 11. d3 {[%clk 0:02:52.7]}
11... Qa5 {[%clk 0:02:25.4]} 12. Bb2 {[%clk 0:02:52.3]} 12... Qa6 {[%clk
0:02:25]} 13. Nxd5 {[%clk 0:02:34.5]} 13... Nxd5 {[%clk 0:02:20.6]} 14. Bxg7
{[%clk 0:02:34.7]} 14... Kxg7 {[%clk 0:02:15.8]} 15. Bxd5 {[%clk 0:02:27.9]}
15... Bxd3 {[%clk 0:02:16.5]} 16. Re1 {[%clk 0:02:22.3]} 16... Rad8 {[%clk
0:02:08.7]} 17. Bxc6 {[%clk 0:02:23.1]} 17... Qxc6 {[%clk 0:02:02.2]} 18. Nd4
{[%clk 0:02:14.5]} 18... Qa6 {[%clk 0:02:00.5]} 19. Qd2 {[%clk 0:02:10.3]} 19...
e5 {[%clk 0:02:00.7]} 20. Nf3 {[%clk 0:02:11.6]} 20... Be4 {[%clk 0:01:53.8]}
0-1

[Event "*** Titled Tuesday Blitz"]
[Site "Chess.com"]
[Date "2018.07.03"]
[Round "6"]
[White "stolencandy13"]
[Black "Aklanion"]
[Result "1-0"]
[WhiteElo "2312"]
[BlackElo "2044"]
[TimeControl "180+2"]
[EndTime "14:12:30 PDT"]
[Termination "stolencandy13 won by resignation"]

1. e4 {[%clk 0:03:01.9]} 1... c5 {[%clk 0:03:00.6]} 2. Nf3 {[%clk 0:03:02.6]}
2... e6 {[%clk 0:03:01.8]} 3. d4 {[%clk 0:03:03.7]} 3... cxd4 {[%clk 0:03:03.7]}
4. Nxd4 {[%clk 0:03:05.2]} 4... Nc6 {[%clk 0:03:05.3]} 5. c4 {[%clk 0:03:05.6]}
5... Qc7 {[%clk 0:03:05.9]} 6. Nb5 {[%clk 0:03:02.9]} 6... Qb8 {[%clk
0:03:06.4]} 7. Be2 {[%clk 0:03:03]} 7... a6 {[%clk 0:03:07.3]} 8. N5c3 {[%clk
0:03:03.9]} 8... Nf6 {[%clk 0:03:08.8]} 9. O-O {[%clk 0:03:04.6]} 9... b6 {[%clk
0:03:10.1]} 10. Be3 {[%clk 0:03:04.6]} 10... d6 {[%clk 0:03:06.1]} 11. Nd2
{[%clk 0:03:04.6]} 11... Ne5 {[%clk 0:03:06.7]} 12. f4 {[%clk 0:03:02.5]} 12...
Ned7 {[%clk 0:03:08.2]} 13. b4 {[%clk 0:03:03]} 13... Be7 {[%clk 0:03:08.7]} 14.
a3 {[%clk 0:03:04]} 14... O-O {[%clk 0:03:09.6]} 15. Qe1 {[%clk 0:02:59.9]}
15... Re8 {[%clk 0:03:10.9]} 16. Qf2 {[%clk 0:03:00.8]} 16... Bb7 {[%clk
0:03:11.7]} 17. Bf3 {[%clk 0:02:59.2]} 17... Bd8 {[%clk 0:03:12.4]} 18. Rab1
{[%clk 0:02:58.6]} 18... Bc7 {[%clk 0:03:12.7]} 19. Rfc1 {[%clk 0:02:57.4]}
19... Qd8 {[%clk 0:03:12.9]} 20. Nb3 {[%clk 0:02:34.7]} 20... Rc8 {[%clk
0:03:12.2]} 21. Rd1 {[%clk 0:02:23.1]} 21... Ba8 {[%clk 0:03:10.8]} 22. c5
{[%clk 0:02:19.6]} 22... bxc5 {[%clk 0:03:10]} 23. bxc5 {[%clk 0:02:20.6]} 23...
dxc5 {[%clk 0:03:08.4]} 24. Nxc5 {[%clk 0:02:18.3]} 24... Qe7 {[%clk 0:03:09]}
25. e5 {[%clk 0:02:09.2]} 25... Nxc5 {[%clk 0:02:56.9]} 26. Bxc5 {[%clk
0:02:04.8]} 26... Bb6 {[%clk 0:02:35.2]} 27. Bxb6 {[%clk 0:01:44.8]} 27... Rxc3
{[%clk 0:02:26]} 28. exf6 {[%clk 0:01:43.3]} 1-0

[Event "*** Titled Tuesday Blitz"]
[Site "Chess.com"]
[Date "2018.07.03"]
[Round "6"]
[White "ChessMavenYeti"]
[Black "DiamondCrusher22"]
[Result "1-0"]
[WhiteElo "2205"]
[BlackElo "1952"]
[TimeControl "180+2"]
[EndTime "14:12:54 PDT"]
[Termination "ChessMavenYeti won by checkmate"]

1. d4 {[%clk 0:03:01.9]} 1... d5 {[%clk 0:03:00.9]} 2. c4 {[%clk 0:03:03]} 2...
c6 {[%clk 0:02:56.7]} 3. e3 {[%clk 0:03:03.2]} 3... Nf6 {[%clk 0:02:34]} 4. Nc3
{[%clk 0:02:49.9]} 4... e6 {[%clk 0:02:33.4]} 5. Nf3 {[%clk 0:02:49.8]} 5... a6
{[%clk 0:02:26.5]} 6. b3 {[%clk 0:02:49.2]} 6... Nbd7 {[%clk 0:02:19.9]} 7. Bb2
{[%clk 0:02:47]} 7... b6 {[%clk 0:02:20.4]} 8. Bd3 {[%clk 0:02:46.7]} 8... Bb7
{[%clk 0:02:21.6]} 9. O-O {[%clk 0:02:46.9]} 9... Bd6 {[%clk 0:02:23]} 10. Ne2
{[%clk 0:02:44.2]} 10... c5 {[%clk 0:02:23.1]} 11. Ne5 {[%clk 0:02:42.9]} 11...
Qb8 {[%clk 0:02:21.5]} 12. f4 {[%clk 0:02:43.2]} 12... Bxe5 {[%clk 0:02:18.3]}
13. fxe5 {[%clk 0:02:44]} 13... Ne4 {[%clk 0:02:17.1]} 14. Ng3 {[%clk
0:02:42.4]} 14... dxc4 {[%clk 0:02:11.3]} 15. Bxe4 {[%clk 0:02:42.4]} 15... b5
{[%clk 0:02:04.8]} 16. Qf3 {[%clk 0:02:40.4]} 16... Bxe4 {[%clk 0:01:53]} 17.
Qxf7+ {[%clk 0:02:39.9]} 17... Kd8 {[%clk 0:01:53.9]} 18. Nxe4 {[%clk
0:02:39.5]} 18... Qb7 {[%clk 0:01:52.9]} 19. Nd6 {[%clk 0:02:34.1]} 19... Qd5
{[%clk 0:01:50.8]} 20. Qxg7 {[%clk 0:02:31.6]} 20... Kc7 {[%clk 0:01:51.6]} 21.
Rf7 {[%clk 0:02:28.8]} 21... Rhg8 {[%clk 0:01:40.2]} 22. Rxd7+ {[%clk
0:02:28.7]} 22... Kc6 {[%clk 0:01:00.3]} 23. Rc7+ {[%clk 0:02:24.8]} 23... Kb6
{[%clk 0:01:01.1]} 24. Rb7+ {[%clk 0:02:24.5]} 24... Ka5 {[%clk 0:01:00.8]} 25.
Bc3+ {[%clk 0:02:24.8]} 25... b4 {[%clk 0:01:02.1]} 26. Qc7# {[%clk 0:02:25]}
1-0

[Event "*** Titled Tuesday Blitz"]
[Site "Chess.com"]
[Date "2018.07.03"]
[Round "6"]
[White "Drags95"]
[Black "WPWPWP-2015"]
[Result "1-0"]
[WhiteElo "2604"]
[BlackElo "2398"]
[TimeControl "180+2"]
[EndTime "14:13:22 PDT"]
[Termination "Drags95 won by resignation"]

1. d4 {[%clk 0:02:46.8]} 1... Nf6 {[%clk 0:02:58.4]} 2. Nf3 {[%clk 0:02:46.9]}
2... d5 {[%clk 0:02:58.2]} 3. c4 {[%clk 0:02:40.6]} 3... c6 {[%clk 0:02:58.7]}
4. Nc3 {[%clk 0:02:41.8]} 4... e6 {[%clk 0:02:59.2]} 5. cxd5 {[%clk 0:02:41.4]}
5... exd5 {[%clk 0:02:59.7]} 6. Bg5 {[%clk 0:02:40]} 6... Be7 {[%clk 0:03:00]}
7. e3 {[%clk 0:02:41]} 7... Bf5 {[%clk 0:02:57.7]} 8. Bd3 {[%clk 0:02:41.5]}
8... Bxd3 {[%clk 0:02:56.6]} 9. Qxd3 {[%clk 0:02:43.4]} 9... O-O {[%clk
0:02:56.7]} 10. O-O {[%clk 0:02:43.4]} 10... Nbd7 {[%clk 0:02:56.7]} 11. Rab1
{[%clk 0:02:42.2]} 11... a5 {[%clk 0:02:55]} 12. a3 {[%clk 0:02:43.6]} 12... Re8
{[%clk 0:02:50.9]} 13. Rfc1 {[%clk 0:02:43.6]} 13... Nf8 {[%clk 0:02:49]} 14.
Bxf6 {[%clk 0:02:43.7]} 14... Bxf6 {[%clk 0:02:49.5]} 15. b4 {[%clk 0:02:45]}
15... axb4 {[%clk 0:02:48.5]} 16. axb4 {[%clk 0:02:46.9]} 16... Ne6 {[%clk
0:02:38.6]} 17. b5 {[%clk 0:02:47.9]} 17... Rc8 {[%clk 0:02:30.2]} 18. Na4
{[%clk 0:02:46.5]} 18... Qd6 {[%clk 0:01:51.5]} 19. Nc5 {[%clk 0:02:43.6]} 19...
Nxc5 {[%clk 0:01:32.7]} 20. Rxc5 {[%clk 0:02:45.5]} 20... Qd7 {[%clk 0:01:31.7]}
21. bxc6 {[%clk 0:02:43.2]} 21... bxc6 {[%clk 0:01:32]} 22. g3 {[%clk
0:02:42.9]} 22... g6 {[%clk 0:01:29.2]} 23. Kg2 {[%clk 0:02:43.8]} 23... h5
{[%clk 0:01:29.3]} 24. h4 {[%clk 0:02:44.5]} 24... Re6 {[%clk 0:01:29.3]} 25.
Qb3 {[%clk 0:02:42.5]} 25... Kg7 {[%clk 0:01:25.3]} 26. Qb7 {[%clk 0:02:43.1]}
26... Rc7 {[%clk 0:01:25.2]} 27. Qa8 {[%clk 0:02:43.4]} 27... Re8 {[%clk
0:01:24.5]} 28. Rb8 {[%clk 0:02:40.7]} 28... Rxb8 {[%clk 0:01:24.8]} 29. Qxb8
{[%clk 0:02:42.6]} 29... Rc8 {[%clk 0:01:23.6]} 30. Qf4 {[%clk 0:02:37.2]} 30...
Qe6 {[%clk 0:01:23.2]} 31. Ng5 {[%clk 0:02:30.5]} 31... Bxg5 {[%clk 0:01:16.2]}
32. hxg5 {[%clk 0:02:32.4]} 32... Rb8 {[%clk 0:01:11.9]} 33. Qxb8 {[%clk
0:02:29.1]} 1-0

[Event "*** Titled Tuesday Blitz"]
[Site "Chess.com"]
[Date "2018.07.03"]
[Round "6"]
[White "VladimirBelous"]
[Black "olksuna"]
[Result "1-0"]
[WhiteElo "2666"]
[BlackElo "2472"]
[TimeControl "180+2"]
[EndTime "14:13:35 PDT"]
[Termination "VladimirBelous won by resignation"]

1. c4 {[%clk 0:02:55.4]} 1... e5 {[%clk 0:02:58.7]} 2. Nc3 {[%clk 0:02:57.3]}
2... Bb4 {[%clk 0:02:56.9]} 3. Nf3 {[%clk 0:02:58.4]} 3... Bxc3 {[%clk
0:02:56.5]} 4. dxc3 {[%clk 0:03:00.3]} 4... d6 {[%clk 0:02:56.3]} 5. c5 {[%clk
0:02:57.1]} 5... Nf6 {[%clk 0:02:53.1]} 6. cxd6 {[%clk 0:02:57.5]} 6... cxd6
{[%clk 0:02:54]} 7. Bg5 {[%clk 0:02:59]} 7... O-O {[%clk 0:02:52]} 8. e3 {[%clk
0:02:57.5]} 8... h6 {[%clk 0:02:51.9]} 9. Bh4 {[%clk 0:02:59]} 9... Nc6 {[%clk
0:02:46]} 10. Bc4 {[%clk 0:02:55.9]} 10... Be6 {[%clk 0:02:40.2]} 11. Bxe6
{[%clk 0:02:56.2]} 11... fxe6 {[%clk 0:02:39.7]} 12. O-O {[%clk 0:02:58.1]}
12... Qe7 {[%clk 0:02:37.8]} 13. Nd2 {[%clk 0:02:58.1]} 13... Rad8 {[%clk
0:02:35.8]} 14. Ne4 {[%clk 0:02:55.2]} 14... g5 {[%clk 0:02:31.7]} 15. Nxf6+
{[%clk 0:02:57.1]} 15... Qxf6 {[%clk 0:02:30.1]} 16. Bg3 {[%clk 0:02:59]} 16...
Ne7 {[%clk 0:02:27.6]} 17. Qb3 {[%clk 0:02:59.4]} 17... Rd7 {[%clk 0:02:27.6]}
18. Qa4 {[%clk 0:02:47.5]} 18... Nc6 {[%clk 0:02:24.4]} 19. Rad1 {[%clk
0:02:48.6]} 19... d5 {[%clk 0:02:12.6]} 20. h4 {[%clk 0:02:47.5]} 20... Kg7
{[%clk 0:02:07.4]} 21. hxg5 {[%clk 0:02:48.1]} 21... hxg5 {[%clk 0:02:09.3]} 22.
b4 {[%clk 0:02:41.8]} 22... a6 {[%clk 0:02:08.5]} 23. e4 {[%clk 0:02:35.6]}
23... d4 {[%clk 0:02:02.1]} 24. cxd4 {[%clk 0:02:37.5]} 24... exd4 {[%clk
0:02:02.4]} 25. f4 {[%clk 0:02:38.7]} 25... gxf4 {[%clk 0:01:59.3]} 26. Rxf4
{[%clk 0:02:40.6]} 26... Qg6 {[%clk 0:01:59.8]} 27. Rdf1 {[%clk 0:02:22.1]}
27... Rxf4 {[%clk 0:01:56.5]} 28. Bxf4 {[%clk 0:02:24]} 28... Qxe4 {[%clk
0:01:55.6]} 29. Qd1 {[%clk 0:02:19.1]} 29... e5 {[%clk 0:01:56.3]} 30. Qg4+
{[%clk 0:02:18]} 30... Kh8 {[%clk 0:01:50.1]} 31. Bxe5+ {[%clk 0:01:56.9]} 31...
Nxe5 {[%clk 0:01:42.2]} 32. Rf8+ {[%clk 0:01:53.9]} 32... Kh7 {[%clk 0:01:42.8]}
33. Qxe4+ {[%clk 0:01:55.8]} 1-0

[Event "*** Titled Tuesday Blitz"]
[Site "Chess.com"]
[Date "2018.07.03"]
[Round "6"]
[White "Zaven_ChessMood"]
[Black "djogrodek1"]
[Result "1-0"]
[WhiteElo "2881"]
[BlackElo "2503"]
[TimeControl "180+2"]
[EndTime "14:13:36 PDT"]
[Termination "Zaven_ChessMood won by resignation"]

1. e4 {[%clk 0:03:01.9]} 1... c6 {[%clk 0:02:47.4]} 2. d3 {[%clk 0:03:01.6]}
2... d5 {[%clk 0:02:49.3]} 3. Nd2 {[%clk 0:03:03.1]} 3... e5 {[%clk 0:02:45]} 4.
Ngf3 {[%clk 0:03:04.2]} 4... Bd6 {[%clk 0:02:46]} 5. g3 {[%clk 0:03:05.8]} 5...
Nf6 {[%clk 0:02:42.5]} 6. Bg2 {[%clk 0:03:07.2]} 6... O-O {[%clk 0:02:42]} 7.
O-O {[%clk 0:03:08.7]} 7... Nbd7 {[%clk 0:02:43.4]} 8. Re1 {[%clk 0:03:10.2]}
8... Qc7 {[%clk 0:02:43.9]} 9. Nh4 {[%clk 0:03:10.2]} 9... Re8 {[%clk
0:02:42.6]} 10. h3 {[%clk 0:03:10.5]} 10... g6 {[%clk 0:02:37.1]} 11. Nf1 {[%clk
0:03:10.5]} 11... dxe4 {[%clk 0:02:30.7]} 12. dxe4 {[%clk 0:03:10.8]} 12... Nc5
{[%clk 0:02:32.1]} 13. Bg5 {[%clk 0:03:10.2]} 13... Nfd7 {[%clk 0:02:28.8]} 14.
Ne3 {[%clk 0:03:09.5]} 14... Bf8 {[%clk 0:02:20.5]} 15. Ng4 {[%clk 0:03:09.2]}
15... Ne6 {[%clk 0:02:01.6]} 16. Bh6 {[%clk 0:03:08.3]} 16... Bxh6 {[%clk
0:01:45.9]} 17. Nxh6+ {[%clk 0:03:07.1]} 17... Kg7 {[%clk 0:01:47.8]} 18. Qd2
{[%clk 0:03:07.6]} 18... Ndc5 {[%clk 0:01:29.6]} 19. Rad1 {[%clk 0:03:01.7]}
19... Rd8 {[%clk 0:01:03]} 20. Qe3 {[%clk 0:02:56.7]} 20... Rxd1 {[%clk
0:01:02.3]} 21. Rxd1 {[%clk 0:02:57.4]} 21... Bd7 {[%clk 0:00:51]} 22. b4 {[%clk
0:02:56.1]} 22... Na6 {[%clk 0:00:51.8]} 23. Ng4 {[%clk 0:02:54.6]} 23... g5
{[%clk 0:00:20.8]} 24. Nf5+ {[%clk 0:02:53.9]} 24... Kh8 {[%clk 0:00:22.3]} 25.
Qc3 {[%clk 0:02:49.8]} 25... f6 {[%clk 0:00:11.2]} 26. Nxf6 {[%clk 0:02:49.2]}
26... Be8 {[%clk 0:00:12.5]} 27. Nd6 {[%clk 0:02:49.4]} 27... Bg6 {[%clk
0:00:12]} 28. Qxe5 {[%clk 0:02:50.3]} 28... Qg7 {[%clk 0:00:13.5]} 29. Qxe6
{[%clk 0:02:50.7]} 1-0